Cogmind - Beta 15 @@@ ROGUE MODE // 2025.08.12 @ 19:37:48 Player: JuustuToug Result: Destroyed by SX-1DB(j) with Overtuned Pulse Rifle Performance ------------- Evolutions (0) 0 Regions Visited (4) 800 Robots Destroyed (27) 135 Value Destroyed (543) 543 Prototype IDs (18) 360 Alien Tech Used (0) 0 Bonus (800) 800 TOTAL SCORE: 2638 Bonus ------- Registered with UFD 300 Met Optimus in HQ 500 Cogmind --------- Core Integrity 0/250 Matter 300/300 Energy 54/100 System Corruption 0% Temperature Cool (14) Movement Flying (42) Location -9/Scraptown Parts ------- > --- POWER (1) -------- (None) > --- PROPULSION (2) --- VTOL Module Makeshift Flight Unit > --- UTILITY (2) ------ Weight Redist. System Signal Interpreter > --- WEAPON (2) ------- Light EM Pulse Cannon Great Axe > --- INVENTORY (5) ---- Surveybot 24 Chip 0b10 Decoder Chip [Looter] Authchip [Propulsion] EMP Blaster Peak State ------------ > --- POWER ------------ Improved Ion Engine > --- PROPULSION ------- VTOL Module Makeshift Flight Unit > --- UTILITY ---------- Improved Heat Sink Signal Interpreter > --- WEAPON ----------- EM Pulse Gun Makeshift Laser > --- INVENTORY -------- Weight Redist. System Medium Armor Plating Authchip [Propulsion] EMP Blaster Great Axe [Rating: 18] Favorites ----------- Power Ion Engine Engine Ion Engine Propulsion Improved Aluminum Leg Leg Improved Aluminum Leg Flight Unit Makeshift Flight Unit Utility Signal Interpreter Device Improved Heat Sink Storage Small Storage Unit Processor Signal Interpreter Protection Medium Armor Plating Weapon EM Pulse Gun Energy Gun EM Pulse Gun Energy Cannon Light EM Pulse Cannon Ballistic Gun Light Assault Rifle Slashing Weapon Great Axe Build | -11 -10 -10 -9 -9 ------- Run | Yrd Mat Sub Rec Scr Slots Evolved . | . . . . . Power . | . . . . . Propulsion . | . . . . . Utility . | . . . . . Weapon . | . . . . . Parts Attached 32 | 6 9 8 3 6 Power 7 | 1 3 1 . 2 Engine 7 | 1 3 1 . 2 Core . | . . . . . Reactor . | . . . . . Propulsion 9 | 2 2 3 1 1 Treads . | . . . . . Leg 6 | 2 2 2 . . Wheel . | . . . . . Hover . | . . . . . Flight 3 | . . 1 1 1 Utility 6 | 1 2 1 1 1 Device 2 | . . . 1 1 Storage 2 | 1 1 . . . Processor 1 | . . 1 . . Hackware . | . . . . . Protection 1 | . 1 . . . Artifact . | . . . . . Weapon 10 | 2 2 3 1 2 Energy Gun 6 | 1 2 2 1 . Energy Cannon 1 | . . . . 1 Ballistic Gun 2 | 1 . 1 . . Ballistic Cannon . | . . . . . Launcher . | . . . . . Special Weapon . | . . . . . Impact Weapon . | . . . . . Slashing Weapon 1 | . . . . 1 Piercing Weapon . | . . . . . Special Melee Weapon . | . . . . . Unidentified Prototypes . | . . . . . Parts Lost 10 | . 1 7 . 2 Power 2 | . . 1 . 1 Propulsion 3 | . . 2 . 1 Utility . | . . . . . Weapon 5 | . 1 4 . . Highest Loss Streak 5 | . 1 5 . 2 To Critical Strikes . | . . . . . Average Backups 6 | 2 7 6 4 4 Power . | . 1 . . . Propulsion . | . 1 . . . Utility 2 | . 2 4 3 2 Weapon 1 | . 1 . . 1 Tool/Special . | . . . . . Unused Backups 10 | . 5 . . 5 Power . | . . . . . Propulsion 4 | . 4 . . . Utility 3 | . . . . 3 Weapon 2 | . 1 . . 1 Tool/Special 1 | . . . . 1 Average Slot Usage (%) 92 | . 98 80 72 99 Engine 13 | . 14 13 14 13 Leg 14 | . 28 14 . . Flight 11 | . . 6 20 28 Device 4 | . . . 1 14 Storage 7 | . 14 7 . . Processor 7 | . . 12 14 14 Protection 5 | . 12 1 . . Energy Gun 22 | . 27 14 20 23 Energy Cannon 1 | . . . . 3 Ballistic Gun 2 | . . 9 . . Peak Build Rating 18 | 6 12 13 17 18 Average Rating 12 | 4 11 11 12 16 On Entrance 9 | . 6 12 11 17 Naked Turns . | . . . . . Heaviest Build 28 | 11 27 28 10 15 Greatest Support 26 | 20 26 26 12 18 Greatest Overweight (x) 1 | . 1 1 . . Average Overweight (x) . | . . . . . Largest Inventory Capacity 10 | 8 10 10 5 5 Average Capacity 6 | 7 8 7 5 5 Most Carried 9 | 4 9 9 5 5 Average Carried 6 | 2 7 5 4 4 Final Capacity 10 | 8 10 5 5 5 Final Carried 9 | 3 9 5 5 4 Class Distribution -------------------- 92% | Mutant 7% | Derelict-Mutant Dominant Class ---------------- Mutant | -10/Materials Mutant | -10/Subcaves Mutant | -9/Recycling Mutant | -9/Scraptown Resources | -11 -10 -10 -9 -9 ----------- Run | Yrd Mat Sub Rec Scr Matter Collected 624 | 229 153 119 33 90 Remotely . | . . . . . Salvage Created 809 | . 693 116 . . Parts 59 | . 51 8 . . Haulers Intercepted 2 | . 2 . . . Recyclers Shooed . | . . . . . Parts Field Recycled . | . . . . . Retrieved Matter . | . . . . . Parts Self-Destructed 9 | . . 9 . . Prevented 1 | . . 1 . . Kills | -11 -10 -10 -9 -9 ------- Run | Yrd Mat Sub Rec Scr Combat Hostiles Destroyed 17 | . 14 3 . . Guns 15 | . 12 3 . . AOE 2 | . 2 . . . Classes Destroyed 7 | . 6 1 . . Worker 1 | . 1 . . . Hauler 2 | . 2 . . . Operator 2 | . 2 . . . Turret 2 | . . 2 . . Watcher 3 | . 3 . . . Swarmer 9 | . 6 3 . . Grunt 8 | . 8 . . . Best Kill Streak 4 | . 4 3 . . Combat Bots Only 4 | . 4 3 . . Max Kills in Single Turn 2 | . 2 1 . . Gunslinging . | . . . . . Exploded 1 | . 1 . . . Melee . | . . . . . Uniques/NPCs Destroyed . | . . . . . Combat | -11 -10 -10 -9 -9 -------- Run | Yrd Mat Sub Rec Scr Hostile Shots Fired 199 | . 43 134 . 22 Missed 73 | . 12 53 . 8 Hits 126 | . 31 81 . 14 Projectile 126 | . 31 81 . 14 Critical Strikes 1 | . . . . 1 Damage Taken 1289 | . 427 615 . 247 Core 267 | . 33 137 . 97 Absorbed by Shields . | . . . . . Regen/Repaired (Parts) 124 | . 124 . . . Core Remaining (%) 100 | 100 . . . . Volleys Fired 61 | . 33 27 . 1 Largest 2 | . 2 2 . 1 Hottest 90 | . 85 90 . 56 Shots Fired 107 | . 65 40 1 1 Gun 106 | . 65 40 1 . Cannon 1 | . . . . 1 Launcher . | . . . . . Special . | . . . . . Kinetic 18 | . 2 16 . . Thermal 1 | . . . 1 . Explosive . | . . . . . Electromagnetic 88 | . 63 24 . 1 Robot Hit Streak 10 | . 10 5 . . Robot Miss Streak 6 | . 3 6 1 . Penetration Max . | . . . . . Secondary Targets . | . . . . . Shots Hit Robots 74 | . 45 29 . . Core Hits 47 | . 35 12 . . Critical Kills . | . . . . . Critical Parts Destroyed . | . . . . . Critical Strikes . | . . . . . Melee Attacks 3 | . . . . 3 Impact . | . . . . . Slashing 3 | . . . . 3 Piercing . | . . . . . Sneak Attacks . | . . . . . Combat Hostiles . | . . . . . Follow-up Attacks . | . . . . . Damage Inflicted 1127 | . 843 284 . . Guns 937 | . 653 284 . . Cannons . | . . . . . Explosions 190 | . 190 . . . Melee . | . . . . . Ramming . | . . . . . Kinetic 124 | . 20 104 . . Thermal 190 | . 190 . . . Explosive . | . . . . . Electromagnetic 813 | . 633 180 . . Impact . | . . . . . Slashing . | . . . . . Piercing . | . . . . . Highest Corruption 2 | . 2 2 2 . Average Corruption 2 | . 2 2 2 . Corruption Purged . | . . . . . Corruption Blocked . | . . . . . Effects 21 | . 8 9 4 . Message Errors 7 | . 4 2 1 . Matter Fused 7 | . 3 3 1 . Parts Rejected 1 | . . 1 . . Data Loss (minor) 4 | . 1 3 . . Misfires 1 | . . . 1 . Alerts 1 | . . . 1 . Overload Shots . | . . . . . Overflow Damage . | . . . . . Projectiles . | . . . . . Explosions . | . . . . . Melee . | . . . . . Knockbacks . | . . . . . Impact . | . . . . . Kinetic . | . . . . . Secondary . | . . . . . Self-Inflicted Damage 72 | . 72 . . . Shots 2 | . 2 . . . Rammed . | . . . . . Targets Rammed . | . . . . . Kicked . | . . . . . Crushed . | . . . . . Highest Temperature 210 | . 210 22 18 39 Average Temperature 58 | . 66 11 9 16 Received Heat Transfer 610 | . 123 324 . 163 Siege Activations . | . . . . . Martial Activations . | . . . . . Shielding Activations . | . . . . . Robots Disrupted . | . . . . . Combat Hostiles . | . . . . . Robots Corrupted . | . . . . . Combat Hostiles . | . . . . . Parts Fried 3 | . 3 . . . Impact Corruptions . | . . . . . Robots Melted . | . . . . . Combat Hostiles . | . . . . . Parts Melted . | . . . . . Heat Transferred 300 | . 300 . . . Parts Sabotaged . | . . . . . Parts Stolen . | . . . . . Parts Stripped . | . . . . . Power Chain Reactions 3 | . 3 . . . Alert | -11 -10 -10 -9 -9 ------- Run | Yrd Mat Sub Rec Scr Maximum Alert Level 1 | . . . 1 . Low Security (%) 92 | 100 100 . 59 . Level 1 7 | . . . 40 . Level 2 . | . . . . . Level 3 . | . . . . . Level 4 . | . . . . . Level 5 . | . . . . . High Security . | . . . . . Max Security . | . . . . . Peak Influence 259 | . 193 . 259 . Initial 259 | . . . 259 . Average 92 | . 74 . 190 . Influence Increases 1370 | . 494 865 11 . Destroy 0b10 Robot/C 380 | . 280 100 . . Destroy 0b10 Robot/NC 40 | . 40 . . . Destroy Leader 60 | . 60 . . . Successful Hack 71 | . 60 . 11 . Disable Machine 15 | . 15 . . . Destroy Structure 9 | . 9 . . . Lose Combat Pursuer 795 | . 30 765 . . Influence Decreases 1370 | . 494 324 422 130 Entered New Map 412 | . . . 282 130 Time Decay 766 | . 372 254 140 . Lost Part 80 | . 10 70 . . Purge Threat 112 | . 112 . . . Squads Dispatched 1 | . 1 . . . Investigation 1 | . 1 . . . Extermination . | . . . . . Reinforcement . | . . . . . Assault . | . . . . . Garrison . | . . . . . Intercept . | . . . . . Searches Triggered . | . . . . . Construction Impeded . | . . . . . Haulers Reinforced . | . . . . . Active Scanning Responses . | . . . . . Cargo Convoy Interrupts . | . . . . . Stealth | -11 -10 -10 -9 -9 --------- Run | Yrd Mat Sub Rec Scr Distress Signals . | . . . . . Communications Jammed . | . . . . . Distress Signals . | . . . . . Times Spotted 80 | . 21 47 . 12 Peak Tracking Total 11 | . 5 6 . 11 Tactical Retreats 8 | . 2 6 . . Traps | -11 -10 -10 -9 -9 ------- Run | Yrd Mat Sub Rec Scr Traps Triggered 2 | . 2 . . . Indirectly . | . . . . . Trap Hack Attempts . | . . . . . Triggered . | . . . . . Disarmed . | . . . . . Reprogrammed . | . . . . . Reused . | . . . . . Traps Extracted . | . . . . . Installed . | . . . . . Triggered . | . . . . . Machines | -11 -10 -10 -9 -9 ---------- Run | Yrd Mat Sub Rec Scr Machines Disabled 6 | . 1 2 . 3 Max in Single Turn 1 | . 1 1 . 1 Machines Repaired . | . . . . . Machines Dismantled . | . . . . . Machines Sabotaged . | . . . . . Overloaded Fab Kills . | . . . . . Hacking | -11 -10 -10 -9 -9 --------- Run | Yrd Mat Sub Rec Scr Machines Accessed 29 | . 9 3 10 7 Terminals 13 | . 7 . 6 . Fabricators . | . . . . . Repair Stations 1 | . 1 . . . Recycling Units 5 | . 1 . 4 . Scanalyzers . | . . . . . Garrison Access . | . . . . . Total Hacks 81 | . 36 6 18 21 Successful 52 | . 16 6 9 21 Failed 29 | . 20 . 9 . Catastrophic 2 | . 1 . 1 . Database Lockouts . | . . . . . Manual 8 | . 6 . 2 . Terminals 41 | . 27 . 14 . Fabricators . | . . . . . Repair Stations 4 | . 4 . . . Recycling Units 9 | . 5 . 4 . Scanalyzers . | . . . . . Garrison Access . | . . . . . Terminal Hacks 44 | . 12 6 5 21 Record 24 | . . 4 . 20 Robot Analysis 1 | . . . 1 . Prototype ID Bank 5 | . 4 . 1 . Open Door 1 | . . 1 . . Unreport Threat 2 | . 2 . . . Locate Traps 2 | . 2 . . . Investigation Status 1 | . 1 . . . Registered Components 2 | . 1 . 1 . Zone Layout 4 | . 2 . 2 . Proto ID Catalog 1 | . . . . 1 Release Object 1 | . . 1 . . Fabricator Hacks . | . . . . . Repair Station Hacks 2 | . 2 . . . Scan Component 1 | . 1 . . . Repair 1 | . 1 . . . Recycling Unit Hacks 5 | . 1 . 4 . Report Inventory 5 | . 1 . 4 . Scanalyzer . | . . . . . Garrison Access Hacks . | . . . . . Unauthorized Hacks 1 | . 1 . . . Terminals . | . . . . . Fabricators . | . . . . . Repair Stations 1 | . 1 . . . Patch 1 | . 1 . . . Recycling Units . | . . . . . Scanalyzers . | . . . . . Garrison Access . | . . . . . Data Cores Recovered 2 | . 2 . . . Used 1 | . 1 . . . Hacking Detections 17 | . 8 . 9 . Full Trace Events . | . . . . . Feedback Events . | . . . . . Feedback Blocked . | . . . . . Robot Schematics Acquired . | . . . . . Robots Built . | . . . . . Authchips . | . . . . . Time . | . . . . . Total Robot Build Rating . | . . . . . Part Schematics Acquired . | . . . . . Parts Built . | . . . . . Authchips . | . . . . . Time . | . . . . . Total Part Build Rating . | . . . . . Parts Repaired 1 | . 1 . . . Time 32 | . 32 . . . Parts Recycled . | . . . . . Recycled Matter . | . . . . . Retrieved Matter . | . . . . . Retrieved Components . | . . . . . Parts Scanalyzed . | . . . . . Part Schematics Acquired . | . . . . . Parts Damaged . | . . . . . Bothacking | -11 -10 -10 -9 -9 ------------ Run | Yrd Mat Sub Rec Scr Used RIF Installer . | . . . . . Robots Hacked . | . . . . . Non-combat . | . . . . . Combat . | . . . . . Robot Hacks Applied . | . . . . . Relay Couplers Released . | . . . . . Fabnet Peak Effective % . | . . . . . Robots Rewired . | . . . . . Allies Hacked . | . . . . . Hacks Repelled . | . . . . . Allies | -11 -10 -10 -9 -9 -------- Run | Yrd Mat Sub Rec Scr Total Allies . | . . . . . Largest Group . | . . . . . Highest-Rated Group . | . . . . . Highest-Rated Ally . | . . . . . Total Orders . | . . . . . Ally Attacks . | . . . . . Total Damage . | . . . . . Kills . | . . . . . Allies Corrupted . | . . . . . Allies Melted 2 | . . . . 2 Intel | -11 -10 -10 -9 -9 ------- Run | Yrd Mat Sub Rec Scr Active Infowar (turns) . | . . . . . Robot Analysis Total 1 | . . . 1 . Derelict Logs Recovered 1 | . . 1 . . Drone Launches . | . . . . . Drone Recoveries . | . . . . . Exploration | -11 -10 -10 -9 -9 ------------- Run | Yrd Mat Sub Rec Scr Turns Passed 3142 | 75 1280 557 299 931 Spaces Moved 4208 | 58 847 575 613 2115 Core 12 | 12 . . . . Treads . | . . . . . Legs 1024 | 46 847 131 . . Wheels . | . . . . . Hover . | . . . . . Flight 3172 | . . 444 613 2115 Fastest Speed 42 | 50 120 55 42 42 Average Speed 64 | 105 125 72 47 42 Slowest Speed 190 | 120 190 190 55 42 Overloaded Moves . | . . . . . Propulsion Burnouts . | . . . . . Robots Hopped 5 | . . . 3 2 Potential Cave-ins . | . . . . . Cave-ins Triggered . | . . . . . Exploration Rate (%) 63 | 4 97 29 99 90 Regions Visited 4 Branch Regions 3 Pre-discovered Areas 1 | . . 1 . . Known Exits Taken 2 | . . 1 1 . Unknown Exits Taken 2 | 1 1 . . . Scrap Searched 4 | . . . . 4 Spaces Dug . | . . . . . Terrain Destroyed 8 | . 8 . . . Melee . | . . . . . Projectile . | . . . . . AOE 8 | . 8 . . . Terrain Rammed . | . . . . . Walls Destroyed . | . . . . . Machines Disabled . | . . . . . Actions | -11 -10 -10 -9 -9 --------- Run | Yrd Mat Sub Rec Scr Total 4517 | 72 1005 675 613 2152 Wait 156 | . 88 57 . 11 Move 4195 | 57 846 574 606 2112 Hop 4 | . . . 3 1 Pick Up 32 | 9 15 2 1 5 Fast Attach 6 | . 1 2 2 1 Attach 16 | 6 2 6 1 1 Detach . | . . . . . Swap 17 | . 7 3 . 7 Drop 26 | . 13 3 . 10 Fire 61 | . 33 27 . 1 Melee 3 | . . . . 3 Ram . | . . . . . Kick . | . . . . . Crush . | . . . . . Escape Stasis . | . . . . . Rewire . | . . . . . Trap . | . . . . . Miscellaneous 1 | . . 1 . . Route ------- -11/Scrapyard -10/Materials (discovered 5 exits: [*Mat x3] / [*Min] / *Sub) -10/Subcaves (discovered 3 exits: *Mat x2 / *Rec) -9/Recycling (discovered 2 exits: *Fac / *Scr) -9/Scraptown (discovered 2 exits: *Fac x2) History --------- Turn | Location | Event 17 | -11/Scrapyard | Discovered new exit (range 15) 76 | -11/Scrapyard | Entered Materials 299 | -10/Materials | Discovered new exit (range 11) 306 | -10/Materials | Build established: Mutant 670 | -10/Materials | Discovered new exit (range 16) 819 | -10/Materials | Discovered new exit (range 15) 867 | -10/Materials | Repaired Med. Armor Plating 1190 | -10/Materials | Discovered new exit (range 16) 1335 | -10/Materials | Discovered new exit (range 8) 1356 | -10/Materials | Entered Subcaves 1356 | -10/Subcaves | Discovered new exit (range 13) 1356 | -10/Subcaves | Discovered new exit (range 10) 1357 | -10/Subcaves | Approached by a straggling Scientist 1426 | -10/Subcaves | Identified exit to Materials 1446 | -10/Subcaves | Learned location of 1 exit from Materials 1476 | -10/Subcaves | Discovered new exit (range 8) 1523 | -10/Subcaves | Core integrity fell below 50% 1545 | -10/Subcaves | Identified exit to Recycling 1547 | -10/Subcaves | Lost 5 parts (1p2n2w) 1654 | -10/Subcaves | Released subatomizers from SUBCON Basin 1686 | -10/Subcaves | Visited Clippyterm 1688 | -10/Subcaves | Learned location of Extension (-4) 1913 | -10/Subcaves | Entered Recycling 2120 | -9/Recycling | Discovered new exit (range 16) 2134 | -9/Recycling | Identified exit to Factory 2199 | -9/Recycling | Scanned before Scraplab entrance 2211 | -9/Recycling | Discovered new exit (range 3) 2212 | -9/Recycling | Identified exit to Scraptown 2212 | -9/Recycling | Entered Scraptown 2212 | -9/Scraptown | System corruption cleaned by C-Scrubber 2255 | -9/Scraptown | Heard Great Nut preacher, LISTEN AND RECITE! 2377 | -9/Scraptown | Discovered new exit (range 4) 2379 | -9/Scraptown | Identified exit to Factory 2411 | -9/Scraptown | Visited Red Mages 2431 | -9/Scraptown | Visited Fellowship of the Rings 2514 | -9/Scraptown | Visited TADAMA 2544 | -9/Scraptown | Visited Comm Corps 2601 | -9/Scraptown | Visited IN-MT5's Study 2616 | -9/Scraptown | Visited Cyclists 2686 | -9/Scraptown | Visited UFD Registry 2686 | -9/Scraptown | Registered with UFD as "Laserrider" 2699 | -9/Scraptown | Entered Cyclist Reading Room 2780 | -9/Scraptown | Visited Curators Association 2809 | -9/Scraptown | Visited Botcube Research 2822 | -9/Scraptown | Visited Chapter 10 2862 | -9/Scraptown | Discovered exit to Factory (range 3) 2875 | -9/Scraptown | Visited Science Guys 2889 | -9/Scraptown | Visited DA-N13 Charitable Foundation 2891 | -9/Scraptown | Found DCF Scrap (28 items) 2919 | -9/Scraptown | Visited Infowarlord's Domain 2934 | -9/Scraptown | Visited Scrapoid Pod Storage 3037 | -9/Scraptown | Met Optimus 3037 | -9/Scraptown | Accepted into 0bPrime 3080 | -9/Scraptown | Civil war broke out across Scraptown 3107 | -9/Scraptown | Core integrity fell below 20% 3139 | -9/Scraptown | Found Surveybot 24 Chip 3143 | -9/Scraptown | Destroyed by SX-1DB(j) with Overtuned Pulse Rifle Last Messages --------------- 03121_ Imp. Ion Engine destroyed. 03123_ FO-8NT(p) heat damages Mak. Hacking Suite. 03123_ UFD Mainframe disabled. 03124_ YR-FK6(j) heat spikes uncontrollably. 03124_ YR-FK6(j) overheating. 03126_ YR-FK6(j) switches sides. 03127_ CU-F2R(E) system terminally corrupted. 03128_ Slug penetrates 5K-NRU(g). 03128_ 5K-NRU(g) destroyed. 03129_ Acquired 35 matter. 03130_ Slug penetrates YR-FK6(j). 03130_ YR-FK6(j) suffers critical hit (Destroy). 03130_ Slug penetrates Wall. 03131_ 4Z-JVF(j) destroyed. 03132_ YR-FK6(j) heat short circuits Mak. Microdissipator Network. 03135_ Enclosure breached. 03138_ Dropped EM Pulse Gun. 03139_ Acquired Surveybot 24 Chip. Map ----- +----------------------------------------------------+ | " "#????????????????????????????????????????? | | "#????????????????????????????????????????? | | " """"""#????????????????????????????????????????? | | #????????????????????????????????????????? | | #????????????????????????????????????????? | | #???????????????????????################## | | """"#####???????????????????????"""##"""##""|##""" | | !%"#???????????????????????????"" ##""!##"" ##!!" | | !""#??????????????????????????#"" | | """#??????????????????????????# | | """#??????????????????????????################### | | """"#????????????????????????????????????????????? | | #####????????????????###?###?????????????????????? | | ?????????????????????#"###"#???????????????####### | | ????#####?????????#### "&" ####????????????#"""""" | | ????#"""###???????#" """ "#????????????# " | | ????# X#???????##"" ""#?????????????#"" | | ????# "#????????#]" " #?????????????#"" | | ????# X#???????##"" ["##?####"#######"""" | | ????# #"""#???????#" % "#?#"" """"#"" " | | ##### #####???????##"" ""##?#"" """#"""" | | " "#????????#=" "!#??# " &""#"" | | X "#???????##"" ""##?#" """#" | | " "#???????#" "#?#" # | | #???????####### #####?##### ########### | | ######## ####?????####""#@########### ########### | | #?????# " % " " " " """"""""""" | | #?????###" ==*%=% ! =* | | #???????#" !%[ ! !%% | | #???????#!%[* ! = | | #???????#"*!= =%! | | ### #???#####[ = [= | | ??# #???#"""" != """""""""" """"""""""" | | ??# #???#"""" """"""""""""""""""""""" | | ??# #???#"""" ""###### ############# | | ??# #???#"""" ""# ##?????? | | ??# #???#"""" ""# X"#?????? | | ### ###?#"""" ""# "" "" ##?????? | | "## ""#"#"""" j ""# "" "" X"#?????? | | "## """"#""" j ""# " " ######## | | "## *""####### "" "" | | "## !%###?????#"! "" != "" | | "## ######### %* ""# " " ######## | | "## =""# "" "" ""#?????? | | "## !%""# "" "" ##?????? | | "## / !""# X"#?????? | | ## = =% ""# ##?????? | | ### !%* %=[! ###### ######??????# | | ! *%! """?""""""?????????""" | | ![ =![ """"""""""?????"""""" | +----------------------------------------------------+ Best States ------------- Heat Dissipation 39 Energy Generation 12 Energy Capacity 265 Matter Stores 300 Matter Capacity 300 Sight Range 16 Terrain Scan Density 10 Additional Mass Support 6 Armor Coverage 225 Evasion (%) 61 Authchip Count 1 Item Schematics ----------------- None Robot Schematics ------------------ None Fabricated ------------ Nothing Repaired ---------- Med. Armor Plating | 13% | -10/Materials Alien Tech Used ----------------- None Achievements -------------- None Challenges ------------ None Game ------ Seed ExplosiveSmartbombSaw Manual? 0 Play Time 00:56:52 Cumulative 51.1 hours Start 2025.08.12 @ 16:26:51 End 2025.08.12 @ 19:37:48 Sessions 1 Manual Loads 0 Difficulty Rogue Special Mode None Game No. 37 Rogue 37 Adventurer 0 Explorer 0 Win Type - Total 1 Types 1/0/0/0/0/0/0/0/0/0 Lore% 48 Gallery% 40 Achievement% 35 Wizard Run 0 Options --------- Layout 1 ASCII 0 Keyboard 0 Movement Mouse Keybinds 0 Fullscreen 1 Font 24/Smallcaps Map View 50x35 Zoom Use 0% Tactical HUD 1 Map Filters NONE Filters NONE Steam 1 RUN: 8756fd71-58d2-4de4-8384-194db2eb454d